[Event "White Rook U14 Final 2019"]
[Site "Sochi"]
[Date "2019.06.08"]
[Round "7.22"]
[White "Komissarova, Soigina"]
[Black "Bratov, Ademir"]
[Result "0-1"]
[ECO "A26"]
[WhiteElo "1665"]
[BlackElo "1725"]
[Annotator "NA"]
[PlyCount "54"]
[EventDate "2019.06.02"]
[EventCountry "RUS"]
[SourceTitle "playchess.com"]
[Source "ChessBase"]
[SourceQuality "1"]
[TimeControl "5400+30"]

1. c4 {[%emt 0:00:00]} e5 {[%emt 0:00:00]} 2. g3 {[%emt 0:00:00]} g6 {[%emt 0:00:00]} 3. Bg2 {[%emt 0:00:00]} Bg7 {[%emt 0:00:20]} 4. Nc3 {[%emt 0:00:19]} d6 {[%emt 0:00:25]} 5. e4 {[%emt 0:00:32]} Ne7 {[%emt 0:02:26]} 6. Nge2 {[%emt 0:00:35]} Nbc6 {[%emt 0:01:49]} 7. O-O {[%emt 0:01:20]} O-O {[%emt 0:00:17]} 8. h3 {[%emt 0:00:13]} Be6 {[%emt 0:01:38]} 9. d3 {[%emt 0:00:51]} Qd7 {[%emt 0:01:03]} 10. Kh2 {[%emt 0:00:37]} f5 {[%emt 0:04:15]} 11. Nd5 {[%emt 0:04:14]} Nd8 {[%emt 0:09:35]} 12. Rb1 {[%emt 0:05:47]} c6 {[%emt 0:02:31]} 13. Nxe7+ {[%emt 0:01:06]} Qxe7 {[%emt 0:00:06]} 14. b3 {[%emt 0:01:08]} f4 {[%emt 0:02:35]} 15. gxf4 {[%emt 0:01:39]} exf4 {[%emt 0:00:07]} 16. Bxf4 {[%emt 0:00:28]} Rxf4 {[%emt 0:00:44]} 17. Nxf4 {[%emt 0:02:03]} Be5 {[%emt 0:00:04]} 18. d4 {[%emt 0:01:44]} Bxf4+ {[%emt 0:00:05]} 19. Kh1 {[%emt 0:00:07]} Qh4 {[%emt 0:00:13]} 20. Qd3 {[%emt 0:02:10]} Nf7 {[%emt 0:02:33]} 21. b4 {[%emt 0:01:22]} g5 {[%emt 0:04:00]} 22. Rg1 {[%emt 0:09:35]} Kh8 {[%emt 0:10:26]} 23. Qf3 {[%emt 0:02:52]} Qh6 {[%emt 0:03:46]} 24. Bf1 {[%emt 0:08:15]} g4 {[%emt 0:00:55]} 25. Qg2 {[%emt 0:07:46]} Ng5 {[%emt 0:01:19]} 26. Rb3 {[%emt 0:09:28]} gxh3 {[%emt 0:00:15]} 27. Rxh3 {[%emt 0:00:45]} Bxh3 {[%emt 0:00:31]} 0-1

[Event "White Rook U14 Final 2019"]
[Site "Sochi"]
[Date "2019.06.08"]
[Round "7.23"]
[White "Druchenko, Mikhail"]
[Black "Zhambalov, Bator"]
[Result "1-0"]
[ECO "B33"]
[WhiteElo "1774"]
[BlackElo "1142"]
[Annotator "NA"]
[PlyCount "159"]
[EventDate "2019.06.02"]
[EventCountry "RUS"]
[SourceTitle "playchess.com"]
[Source "ChessBase"]
[SourceQuality "1"]
[TimeControl "5400+30"]

1. e4 {[%emt 0:00:00]} c5 {[%emt 0:00:00]} 2. Nf3 {[%emt 0:00:00]} Nc6 {[%emt 0:00:00]} 3. d4 {[%emt 0:00:00]} cxd4 {[%emt 0:00:00]} 4. Nxd4 {[%emt 0:00:00]} Nf6 {[%emt 0:00:00]} 5. Nc3 {[%emt 0:00:00]} e5 {[%emt 0:00:00]} 6. Ndb5 {[%emt 0:00:00]} d6 {[%emt 0:00:00]} 7. a4 {[%emt 0:00:00]} a6 {[%emt 0:00:18]} 8. Na3 {[%emt 0:00:00]} Be6 {[%emt 0:06:41]} 9. Bc4 {[%emt 0:11:32]} Be7 {[%emt 0:01:11]} 10. Bg5 {[%emt 0:06:17]} O-O {[%emt 0:05:26]} 11. Bxf6 {[%emt 0:00:22]} Bxf6 {[%emt 0:00:00]} 12. O-O {[%emt 0:00:05]} Qc7 {[%emt 0:02:50]} 13. Nd5 {[%emt 0:01:48]} Bxd5 {[%emt 0:01:01]} 14. Bxd5 {[%emt 0:00:20]} Rfd8 {[%emt 0:01:08]} 15. c3 {[%emt 0:00:58]} Rac8 {[%emt 0:06:03]} 16. Nc4 {[%emt 0:04:55]} Ne7 {[%emt 0:01:51]} 17. Ne3 {[%emt 0:00:22]} g6 {[%emt 0:22:36]} 18. Qb3 {[%emt 0:04:00]} Nc6 {[%emt 0:01:55]} 19. Rfd1 {[%emt 0:02:55]} Kg7 {[%emt 0:03:14]} 20. Nc4 {[%emt 0:02:53]} Rb8 {[%emt 0:04:21]} 21. a5 {[%emt 0:01:51]} Rf8 {[%emt 0:05:49]} 22. Qa3 {[%emt 0:02:19]} Rbd8 {[%emt 0:01:13]} 23. b4 {[%emt 0:01:49]} Ne7 {[%emt 0:01:29]} 24. Nb6 {[%emt 0:00:56]} Nxd5 {[%emt 0:00:40]} 25. exd5 {[%emt 0:02:17]} e4 {[%emt 0:01:10]} 26. Rac1 {[%emt 0:00:32]} Bg5 {[%emt 0:00:05]} 27. Rc2 {[%emt 0:01:14]} Rfe8 {[%emt 0:00:23]} 28. Re2 {[%emt 0:00:22]} e3 {[%emt 0:00:14]} 29. f3 {[%emt 0:05:19]} f5 {[%emt 0:00:51]} 30. c4 {[%emt 0:02:37]} f4 {[%emt 0:00:46]} 31. c5 {[%emt 0:00:46]} Bf6 {[%emt 0:00:30]} 32. Qc1 {[%emt 0:00:03]} Be5 {[%emt 0:01:43]} 33. Qc4 {[%emt 0:00:47]} Re7 {[%emt 0:11:26]} 34. Rc1 {[%emt 0:01:31]} Rde8 {[%emt 0:00:57]} 35. c6 {[%emt 0:03:39]} g5 {[%emt 0:03:06]} 36. Nd7 {[%emt 0:01:30]} Rxd7 {[%emt 0:01:12]} 37. cxd7 {[%emt 0:03:48]} Qxd7 {[%emt 0:10:11]} 38. Qc7 {[%emt 0:03:41]} Re7 {[%emt 0:01:01]} 39. Qxd7 {[%emt 0:00:00]} Rxd7 {[%emt 0:00:02]} 40. Rec2 {[%emt 0:00:00]} Kf7 {[%emt 0:00:06]} 41. b5 {[%emt 0:00:20]} axb5 {[%emt 0:00:04]} 42. Rb1 {[%emt 0:00:35]} Ke7 {[%emt 0:00:31]} 43. Rxb5 {[%emt 0:01:30]} Bd4 {[%emt 0:00:39]} 44. Kf1 {[%emt 0:00:00]} Kd8 {[%emt 0:00:22]} 45. Ke2 {[%emt 0:00:00]} Rc7 {[%emt 0:00:37]} 46. Rxc7 {[%emt 0:00:31]} Kxc7 {[%emt 0:00:17]} 47. Kd3 {[%emt 0:01:11]} Bc5 {[%emt 0:02:16]} 48. Rb2 {[%emt 0:00:29]} Ba3 {[%emt 0:00:04]} 49. Ra2 {[%emt 0:00:49]} Bb4 {[%emt 0:00:08]} 50. a6 {[%emt 0:00:32]} bxa6 {[%emt 0:00:32]} 51. Rxa6 {[%emt 0:00:41]} Kb7 {[%emt 0:00:23]} 52. Ra2 {[%emt 0:00:47]} Bc5 {[%emt 0:00:06]} 53. Ke4 {[%emt 0:00:04]} Kb6 {[%emt 0:00:46]} 54. h4 {[%emt 0:01:01]} h6 {[%emt 0:00:00]} 55. Rb2+ {[%emt 0:00:19]} Ka5 {[%emt 0:00:26]} 56. h5 {[%emt 0:00:15]} Ba3 {[%emt 0:00:18]} 57. Rc2 {[%emt 0:01:09]} Bb4 {[%emt 0:00:15]} 58. Kd3 {[%emt 0:00:18]} Kb5 {[%emt 0:00:06]} 59. Rc8 {[%emt 0:00:15]} e2 {[%emt 0:00:10]} 60. Kxe2 {[%emt 0:00:37]} Bc5 {[%emt 0:00:56]} 61. Rh8 {[%emt 0:00:15]} Kc4 {[%emt 0:01:09]} 62. Rxh6 {[%emt 0:00:00]} Kxd5 {[%emt 0:00:06]} 63. Rg6 {[%emt 0:00:19]} Bd4 {[%emt 0:00:02]} 64. Rxg5+ {[%emt 0:00:14]} Ke6 {[%emt 0:00:26]} 65. h6 {[%emt 0:00:00]} Kf7 {[%emt 0:00:58]} 66. Rf5+ {[%emt 0:00:00]} Kg6 {[%emt 0:00:00]} 67. Rxf4 {[%emt 0:00:06]} Bf6 {[%emt 0:00:00]} 68. h7 {[%emt 0:00:27]} Bh8 {[%emt 0:00:07]} 69. Rh4 {[%emt 0:00:05]} Kg7 {[%emt 0:00:15]} 70. g4 {[%emt 0:00:11]} Kg6 {[%emt 0:00:53]} 71. f4 {[%emt 0:00:29]} Kg7 {[%emt 0:00:08]} 72. Kd3 {[%emt 0:00:10]} Kg6 {[%emt 0:00:00]} 73. Ke4 {[%emt 0:00:03]} Kf6 {[%emt 0:00:00]} 74. g5+ {[%emt 0:00:05]} Kg6 {[%emt 0:00:00]} 75. Rh6+ {[%emt 0:00:05]} Kg7 {[%emt 0:00:05]} 76. f5 {[%emt 0:00:06]} Kf7 {[%emt 0:00:05]} 77. Rg6 {[%emt 0:00:33]} Bg7 {[%emt 0:00:06]} 78. Rxd6 {[%emt 0:00:00]} Kf8 {[%emt 0:00:08]} 79. Rd8+ {[%emt 0:00:00]} Kf7 {[%emt 0:00:26]} 80. h8=Q {[%emt 0:00:23]} 1-0

[Event "White Rook U14 Final 2019"]
[Site "Sochi"]
[Date "2019.06.08"]
[Round "7.24"]
[White "Sargaeva, Darima"]
[Black "Kuskova, Ruslana"]
[Result "1/2-1/2"]
[ECO "C45"]
[WhiteElo "1506"]
[BlackElo "1177"]
[Annotator "NA"]
[PlyCount "101"]
[EventDate "2019.06.02"]
[EventCountry "RUS"]
[SourceTitle "playchess.com"]
[Source "ChessBase"]
[SourceQuality "1"]
[TimeControl "5400+30"]

1. e4 {[%emt 0:00:00]} e5 {[%emt 0:00:00]} 2. Nf3 {[%emt 0:00:00]} Nc6 {[%emt 0:00:00]} 3. d4 {[%emt 0:00:00]} exd4 {[%emt 0:00:00]} 4. Nxd4 {[%emt 0:00:00]} Nf6 {[%emt 0:00:00]} 5. Nxc6 {[%emt 0:00:00]} bxc6 {[%emt 0:00:00]} 6. Bd3 {[%emt 0:00:00]} d5 {[%emt 0:03:11]} 7. exd5 {[%emt 0:00:00]} cxd5 {[%emt 0:00:08]} 8. O-O {[%emt 0:00:48]} Be7 {[%emt 0:00:43]} 9. c4 {[%emt 0:02:01]} dxc4 {[%emt 0:03:04]} 10. Bxc4 {[%emt 0:00:10]} O-O {[%emt 0:01:15]} 11. Bf4 {[%emt 0:01:40]} Bd7 {[%emt 0:06:27]} 12. Nc3 {[%emt 0:01:05]} Bc5 {[%emt 0:02:51]} 13. Nd5 {[%emt 0:01:16]} Nxd5 {[%emt 0:03:38]} 14. Qxd5 {[%emt 0:00:11]} Bb6 {[%emt 0:00:13]} 15. Qf3 {[%emt 0:05:31]} Qf6 {[%emt 0:01:57]} 16. b3 {[%emt 0:01:20]} Rad8 {[%emt 0:05:47]} 17. Qg3 {[%emt 0:00:46]} Rc8 {[%emt 0:04:13]} 18. Rac1 {[%emt 0:02:04]} a5 {[%emt 0:14:58]} 19. a4 {[%emt 0:00:40]} Be6 {[%emt 0:16:58]} 20. Bxe6 {[%emt 0:00:44]} Qxe6 {[%emt 0:00:19]} 21. Bxc7 {[%emt 0:01:08]} Bxc7 {[%emt 0:04:05]} 22. Rxc7 {[%emt 0:00:00]} Rxc7 {[%emt 0:00:18]} 23. Qxc7 {[%emt 0:00:00]} Qxb3 {[%emt 0:03:58]} 24. Qxa5 {[%emt 0:00:21]} h6 {[%emt 0:01:12]} 25. Qa7 {[%emt 0:02:20]} Qd5 {[%emt 0:00:08]} 26. Qb6 {[%emt 0:06:07]} Ra8 {[%emt 0:03:36]} 27. Qb5 {[%emt 0:00:02]} Qa2 {[%emt 0:01:29]} 28. Re1 {[%emt 0:01:22]} Qxa4 {[%emt 0:05:02]} 29. Qxa4 {[%emt 0:02:25]} Rxa4 {[%emt 0:00:00]} 30. g3 {[%emt 0:00:08]} g5 {[%emt 0:03:07]} 31. Kg2 {[%emt 0:00:47]} Kg7 {[%emt 0:00:31]} 32. Re5 {[%emt 0:01:18]} Kf6 {[%emt 0:00:55]} 33. Rb5 {[%emt 0:00:43]} Re4 {[%emt 0:03:07]} 34. Kf3 {[%emt 0:00:10]} Ra4 {[%emt 0:02:06]} 35. Rb6+ {[%emt 0:01:34]} Kg7 {[%emt 0:01:30]} 36. Ke3 {[%emt 0:01:44]} Rc4 {[%emt 0:01:19]} 37. Kf3 {[%emt 0:00:40]} Ra4 {[%emt 0:01:55]} 38. g4 {[%emt 0:02:10]} Rf4+ {[%emt 0:00:07]} 39. Kg3 {[%emt 0:00:10]} f5 {[%emt 0:01:01]} 40. f3 {[%emt 0:00:06]} fxg4 {[%emt 0:00:17]} 41. fxg4 {[%emt 0:00:04]} Rf6 {[%emt 0:04:01]} 42. Rb5 {[%emt 0:02:03]} Rf8 {[%emt 0:02:31]} 43. h4 {[%emt 0:00:14]} gxh4+ {[%emt 0:00:33]} 44. Kxh4 {[%emt 0:04:08]} Kg6 {[%emt 0:00:50]} 45. Ra5 {[%emt 0:00:30]} Rf6 {[%emt 0:01:11]} 46. Ra8 {[%emt 0:01:53]} Rf7 {[%emt 0:00:48]} 47. Re8 {[%emt 0:00:06]} Rf6 {[%emt 0:01:18]} 48. Re5 {[%emt 0:00:46]} Rf8 {[%emt 0:00:04]} 49. Kg3 {[%emt 0:02:05]} Rf6 {[%emt 0:00:38]} 50. Kh4 {[%emt 0:00:26]} Rf8 {[%emt 0:00:40]} 51. Re6+ {[%emt 0:00:52]} 1/2-1/2

[Event "White Rook U14 Final 2019"]
[Site "Sochi"]
[Date "2019.06.08"]
[Round "7.25"]
[White "Morozov, Gennady"]
[Black "Bogdanovics, Kirills"]
[Result "1-0"]
[ECO "A04"]
[WhiteElo "1997"]
[BlackElo "1640"]
[Annotator "NA"]
[PlyCount "87"]
[EventDate "2019.06.02"]
[EventCountry "RUS"]
[SourceTitle "playchess.com"]
[Source "ChessBase"]
[SourceQuality "1"]
[TimeControl "5400+30"]

1. e4 {[%emt 0:00:00]} c5 {[%emt 0:00:00]} 2. Nf3 {[%emt 0:00:00]} d6 {[%emt 0:00:00]} 3. d3 {[%emt 0:00:00]} Nc6 {[%emt 0:00:00]} 4. g3 {[%emt 0:00:00]} g6 {[%emt 0:00:15]} 5. Bg2 {[%emt 0:00:00]} Bg7 {[%emt 0:00:04]} 6. O-O {[%emt 0:00:00]} e6 {[%emt 0:00:46]} 7. c3 {[%emt 0:00:50]} Nge7 {[%emt 0:00:48]} 8. Re1 {[%emt 0:00:00]} O-O {[%emt 0:00:46]} 9. Na3 {[%emt 0:00:02]} a6 {[%emt 0:00:27]} 10. Nc2 {[%emt 0:00:49]} b5 {[%emt 0:06:16]} 11. d4 {[%emt 0:00:26]} cxd4 {[%emt 0:00:20]} 12. cxd4 {[%emt 0:00:06]} d5 {[%emt 0:00:33]} 13. e5 {[%emt 0:00:21]} Qb6 {[%emt 0:12:14]} 14. g4 {[%emt 0:04:01]} Bd7 {[%emt 0:01:49]} 15. Be3 {[%emt 0:10:16]} a5 {[%emt 0:02:16]} 16. Qd2 {[%emt 0:03:15]} Rfc8 {[%emt 0:00:52]} 17. Bg5 {[%emt 0:02:20]} a4 {[%emt 0:04:01]} 18. Bf6 {[%emt 0:01:24]} Ra7 {[%emt 0:01:23]} 19. Qf4 {[%emt 0:02:56]} Be8 {[%emt 0:02:31]} 20. Bxg7 {[%emt 0:17:13]} Kxg7 {[%emt 0:00:35]} 21. Ne3 {[%emt 0:01:40]} Ng8 {[%emt 0:01:03]} 22. g5 {[%emt 0:02:18]} Nce7 {[%emt 0:01:45]} 23. Bh3 {[%emt 0:00:42]} Nf5 {[%emt 0:00:40]} 24. Bxf5 {[%emt 0:00:07]} exf5 {[%emt 0:00:19]} 25. Nxd5 {[%emt 0:00:53]} Qb7 {[%emt 0:01:12]} 26. Nf6 {[%emt 0:00:45]} Bc6 {[%emt 0:00:59]} 27. Re3 {[%emt 0:00:35]} h5 {[%emt 0:00:23]} 28. Ne1 {[%emt 0:14:41]} Ne7 {[%emt 0:01:31]} 29. e6 {[%emt 0:02:55]} Nd5 {[%emt 0:01:13]} 30. Qe5 {[%emt 0:07:58]} Nxf6 {[%emt 0:11:15]} 31. Qxf6+ {[%emt 0:01:50]} Kg8 {[%emt 0:00:15]} 32. Rc1 {[%emt 0:00:45]} Bd5 {[%emt 0:00:33]} 33. Rxc8+ {[%emt 0:01:34]} Qxc8 {[%emt 0:00:00]} 34. e7 {[%emt 0:01:12]} Qe8 {[%emt 0:00:17]} 35. Nd3 {[%emt 0:00:40]} Be6 {[%emt 0:00:05]} 36. Nc5 {[%emt 0:01:18]} Bxa2 {[%emt 0:00:13]} 37. Qd6 {[%emt 0:00:38]} Bd5 {[%emt 0:01:56]} 38. Qxd5 {[%emt 0:00:42]} Rxe7 {[%emt 0:02:46]} 39. Re5 {[%emt 0:07:42]} b4 {[%emt 0:00:00]} 40. h4 {[%emt 0:00:13]} f4 {[%emt 0:01:23]} 41. Ne4 {[%emt 0:01:04]} Rxe5 {[%emt 0:00:30]} 42. Nf6+ {[%emt 0:05:04]} Kf8 {[%emt 0:01:56]} 43. dxe5 {[%emt 0:01:24]} Qb8 {[%emt 0:01:27]} 44. Nd7+ {[%emt 0:00:14]} 1-0

[Event "White Rook U14 Final 2019"]
[Site "Sochi"]
[Date "2019.06.08"]
[Round "7.26"]
[White "Springis, Jevgenijs"]
[Black "Ermakov, Maksim"]
[Result "0-1"]
[ECO "D02"]
[WhiteElo "1632"]
[BlackElo "1623"]
[Annotator "NA"]
[PlyCount "70"]
[EventDate "2019.06.02"]
[EventCountry "RUS"]
[SourceTitle "playchess.com"]
[Source "ChessBase"]
[SourceQuality "1"]
[TimeControl "5400+30"]

1. d4 {[%emt 0:00:00]} d5 {[%emt 0:00:00]} 2. Bf4 {[%emt 0:00:00]} Nf6 {[%emt 0:00:00]} 3. e3 {[%emt 0:00:00]} e6 {[%emt 0:00:00]} 4. Nf3 {[%emt 0:00:04]} Bd6 {[%emt 0:00:00]} 5. Bg3 {[%emt 0:00:36]} Ne4 {[%emt 0:00:00]} 6. Bd3 {[%emt 0:02:18]} Nxg3 {[%emt 0:00:00]} 7. hxg3 {[%emt 0:00:04]} h6 {[%emt 0:00:00]} 8. Nbd2 {[%emt 0:00:14]} b6 {[%emt 0:00:15]} 9. Rc1 {[%emt 0:01:24]} Bb7 {[%emt 0:00:07]} 10. O-O {[%emt 0:00:38]} Nd7 {[%emt 0:00:06]} 11. Re1 {[%emt 0:03:43]} O-O {[%emt 0:00:09]} 12. e4 {[%emt 0:00:22]} c5 {[%emt 0:00:07]} 13. exd5 {[%emt 0:03:29]} exd5 {[%emt 0:00:47]} 14. c4 {[%emt 0:00:14]} cxd4 {[%emt 0:00:44]} 15. cxd5 {[%emt 0:02:30]} Bxd5 {[%emt 0:00:00]} 16. Nxd4 {[%emt 0:01:20]} Nf6 {[%emt 0:02:42]} 17. Nf5 {[%emt 0:04:52]} Bc5 {[%emt 0:05:09]} 18. Nc4 {[%emt 0:02:59]} Re8 {[%emt 0:02:04]} 19. Nce3 {[%emt 0:03:31]} Bb7 {[%emt 0:00:11]} 20. Qb3 {[%emt 0:03:45]} Bd5 {[%emt 0:11:49]} 21. Nxd5 {[%emt 0:09:45]} Qxd5 {[%emt 0:00:00]} 22. Qc3 {[%emt 0:09:51]} Rxe1+ {[%emt 0:00:18]} 23. Rxe1 {[%emt 0:00:00]} Rd8 {[%emt 0:00:39]} 24. Bc2 {[%emt 0:01:20]} Qxa2 {[%emt 0:04:55]} 25. Nxh6+ {[%emt 0:04:16]} Kf8 {[%emt 0:00:22]} 26. Bb3 {[%emt 0:02:04]} Qa5 {[%emt 0:00:16]} 27. Qxa5 {[%emt 0:01:47]} bxa5 {[%emt 0:00:07]} 28. Re5 {[%emt 0:10:30]} Bb6 {[%emt 0:00:31]} 29. Nxf7 {[%emt 0:03:33]} Rd2 {[%emt 0:00:12]} 30. Ng5 {[%emt 0:01:40]} Rxb2 {[%emt 0:02:11]} 31. Ne6+ {[%emt 0:00:21]} Kf7 {[%emt 0:00:18]} 32. Ng5+ {[%emt 0:03:01]} Kg6 {[%emt 0:01:08]} 33. Bf7+ {[%emt 0:00:09]} Kh6 {[%emt 0:00:06]} 34. Ne4 {[%emt 0:01:13]} Rb1+ {[%emt 0:00:08]} 35. Kh2 {[%emt 0:01:31]} Ng4+ {[%emt 0:00:07]} 0-1

[Event "White Rook U14 Final 2019"]
[Site "Sochi"]
[Date "2019.06.08"]
[Round "7.28"]
[White "Sergejeva, Sofija"]
[Black "Korovina, Yana"]
[Result "1/2-1/2"]
[ECO "C42"]
[WhiteElo "1423"]
[BlackElo "1672"]
[Annotator "NA"]
[PlyCount "96"]
[EventDate "2019.06.02"]
[EventCountry "RUS"]
[SourceTitle "playchess.com"]
[Source "ChessBase"]
[SourceQuality "1"]
[TimeControl "5400+30"]

1. e4 {[%emt 0:00:00]} e5 {[%emt 0:00:15]} 2. Nf3 {[%emt 0:00:09]} Nf6 {[%emt 0:00:24]} 3. Nxe5 {[%emt 0:01:28]} d6 {[%emt 0:00:00]} 4. Nf3 {[%emt 0:00:40]} Nxe4 {[%emt 0:00:41]} 5. Bc4 {[%emt 0:01:40]} Be7 {[%emt 0:05:23]} 6. d3 {[%emt 0:01:06]} Nf6 {[%emt 0:01:47]} 7. O-O {[%emt 0:02:04]} O-O {[%emt 0:00:48]} 8. d4 {[%emt 0:06:29]} Bg4 {[%emt 0:02:57]} 9. h3 {[%emt 0:02:32]} Bh5 {[%emt 0:01:13]} 10. Bf4 {[%emt 0:02:24]} d5 {[%emt 0:02:08]} 11. Be2 {[%emt 0:03:23]} Nc6 {[%emt 0:06:35]} 12. Ne5 {[%emt 0:06:35]} Bxe2 {[%emt 0:02:33]} 13. Nxc6 {[%emt 0:04:29]} Bxd1 {[%emt 0:03:21]} 14. Nxd8 {[%emt 0:00:16]} Bxc2 {[%emt 0:00:56]} 15. Nxb7 {[%emt 0:02:19]} Rab8 {[%emt 0:04:38]} 16. Rc1 {[%emt 0:04:04]} Nh5 {[%emt 0:14:13]} 17. Rxc2 {[%emt 0:04:11]} Rxb7 {[%emt 0:01:35]} 18. Bh2 {[%emt 0:09:30]} Rfb8 {[%emt 0:03:42]} 19. Nc3 {[%emt 0:06:44]} Nf6 {[%emt 0:02:52]} 20. b3 {[%emt 0:00:33]} Bb4 {[%emt 0:00:52]} 21. Rac1 {[%emt 0:06:11]} Re8 {[%emt 0:01:15]} 22. Be5 {[%emt 0:01:35]} c6 {[%emt 0:00:43]} 23. Bxf6 {[%emt 0:02:20]} gxf6 {[%emt 0:04:00]} 24. Na4 {[%emt 0:03:09]} Rbe7 {[%emt 0:00:06]} 25. Rxc6 {[%emt 0:00:20]} Kg7 {[%emt 0:03:03]} 26. Nb2 {[%emt 0:01:15]} Bd2 {[%emt 0:00:38]} 27. Rd1 {[%emt 0:05:54]} Re1+ {[%emt 0:04:06]} 28. Kh2 {[%emt 0:02:21]} Rxd1 {[%emt 0:03:55]} 29. Nxd1 {[%emt 0:00:23]} Re4 {[%emt 0:01:37]} 30. Ne3 {[%emt 0:02:03]} Bxe3 {[%emt 0:00:10]} 31. fxe3 {[%emt 0:00:15]} Rxe3 {[%emt 0:04:43]} 32. Rc5 {[%emt 0:02:37]} Re2 {[%emt 0:00:19]} 33. Rxd5 {[%emt 0:00:05]} Rxa2 {[%emt 0:05:07]} 34. b4 {[%emt 0:01:47]} Rb2 {[%emt 0:00:46]} 35. b5 {[%emt 0:00:07]} Rb3 {[%emt 0:00:43]} 36. Rc5 {[%emt 0:01:29]} Rd3 {[%emt 0:01:09]} 37. Rc4 {[%emt 0:00:21]} f5 {[%emt 0:01:01]} 38. Rb4 {[%emt 0:00:20]} Kf6 {[%emt 0:01:45]} 39. b6 {[%emt 0:00:16]} axb6 {[%emt 0:01:03]} 40. Rxb6+ {[%emt 0:01:43]} Ke7 {[%emt 0:00:22]} 41. Rh6 {[%emt 0:00:10]} Rxd4 {[%emt 0:00:03]} 42. Rxh7 {[%emt 0:00:06]} f4 {[%emt 0:02:19]} 43. Rh4 {[%emt 0:00:39]} Kf6 {[%emt 0:00:06]} 44. Rg4 {[%emt 0:01:03]} Kf5 {[%emt 0:00:50]} 45. Rh4 {[%emt 0:00:51]} Re4 {[%emt 0:01:12]} 46. Rh5+ {[%emt 0:00:20]} Kg6 {[%emt 0:00:04]} 47. Rd5 {[%emt 0:00:30]} Re2 {[%emt 0:01:28]} 48. Rd3 {[%emt 0:00:31]} Kf5 {[%emt 0:02:18]} 1/2-1/2

[Event "White Rook U14 Final 2019"]
[Site "Sochi"]
[Date "2019.06.08"]
[Round "7.29"]
[White "Hrbek, Stepan"]
[Black "Efimov, Leonid"]
[Result "0-1"]
[ECO "E14"]
[WhiteElo "2013"]
[BlackElo "1666"]
[Annotator "NA"]
[PlyCount "115"]
[EventDate "2019.06.02"]
[EventCountry "RUS"]
[SourceTitle "playchess.com"]
[Source "ChessBase"]
[SourceQuality "1"]
[TimeControl "5400+30"]

1. Nf3 {[%emt 0:00:00]} d5 {[%emt 0:00:15]} 2. e3 {[%emt 0:00:09]} Nf6 {[%emt 0:00:00]} 3. c4 {[%emt 0:00:08]} e6 {[%emt 0:00:08]} 4. b3 {[%emt 0:00:08]} Be7 {[%emt 0:00:08]} 5. Bb2 {[%emt 0:00:16]} O-O {[%emt 0:00:08]} 6. d4 {[%emt 0:02:09]} c5 {[%emt 0:00:17]} 7. Bd3 {[%emt 0:05:17]} cxd4 {[%emt 0:00:33]} 8. exd4 {[%emt 0:00:16]} b6 {[%emt 0:00:15]} 9. O-O {[%emt 0:00:09]} Bb7 {[%emt 0:00:16]} 10. Nbd2 {[%emt 0:00:41]} Nc6 {[%emt 0:01:23]} 11. Rc1 {[%emt 0:06:47]} Rc8 {[%emt 0:00:40]} 12. Qe2 {[%emt 0:01:22]} Re8 {[%emt 0:03:38]} 13. Rfd1 {[%emt 0:03:20]} Bf8 {[%emt 0:03:29]} 14. h3 {[%emt 0:06:19]} g6 {[%emt 0:03:05]} 15. Qe3 {[%emt 0:15:06]} Bg7 {[%emt 0:04:26]} 16. Ne5 {[%emt 0:01:37]} Nd7 {[%emt 0:01:05]} 17. f4 {[%emt 0:02:50]} Nb4 {[%emt 0:01:43]} 18. Bb1 {[%emt 0:03:17]} f6 {[%emt 0:04:27]} 19. Nxd7 {[%emt 0:05:59]} Qxd7 {[%emt 0:02:21]} 20. a3 {[%emt 0:01:34]} Nc6 {[%emt 0:00:46]} 21. Nf3 {[%emt 0:00:17]} Ne7 {[%emt 0:06:17]} 22. g3 {[%emt 0:17:47]} Nf5 {[%emt 0:01:39]} 23. Qf2 {[%emt 0:00:00]} Nd6 {[%emt 0:00:23]} 24. Qe2 {[%emt 0:02:45]} dxc4 {[%emt 0:02:01]} 25. bxc4 {[%emt 0:00:15]} Nxc4 {[%emt 0:00:07]} 26. Ba1 {[%emt 0:06:57]} Bd5 {[%emt 0:01:17]} 27. Rc3 {[%emt 0:02:00]} Bf8 {[%emt 0:02:00]} 28. Qd3 {[%emt 0:02:25]} b5 {[%emt 0:01:22]} 29. Nd2 {[%emt 0:07:21]} Qb7 {[%emt 0:03:02]} 30. Nxc4 {[%emt 0:00:43]} bxc4 {[%emt 0:00:12]} 31. Qe2 {[%emt 0:00:48]} Rc7 {[%emt 0:00:33]} 32. Ba2 {[%emt 0:00:31]} Rec8 {[%emt 0:01:08]} 33. Rdc1 {[%emt 0:01:15]} Qa6 {[%emt 0:00:47]} 34. Bb2 {[%emt 0:00:52]} Bd6 {[%emt 0:01:11]} 35. Kh2 {[%emt 0:03:53]} Kf7 {[%emt 0:01:07]} 36. R1c2 {[%emt 0:00:36]} f5 {[%emt 0:00:53]} 37. Rc1 {[%emt 0:00:00]} Be7 {[%emt 0:00:44]} 38. Kg1 {[%emt 0:01:54]} Bf6 {[%emt 0:00:25]} 39. R3c2 {[%emt 0:00:00]} Be7 {[%emt 0:00:07]} 40. Rc3 {[%emt 0:00:04]} Rc6 {[%emt 0:00:48]} 41. Kh2 {[%emt 0:00:05]} Qa4 {[%emt 0:02:24]} 42. Kg1 {[%emt 0:00:20]} Bf6 {[%emt 0:00:30]} 43. Qd2 {[%emt 0:00:54]} Bd8 {[%emt 0:00:25]} 44. Qc2 {[%emt 0:01:31]} Qa6 {[%emt 0:00:23]} 45. Qe2 {[%emt 0:00:58]} Ba5 {[%emt 0:00:38]} 46. Re3 {[%emt 0:00:41]} R8c7 {[%emt 0:02:03]} 47. Bc3 {[%emt 0:00:30]} Bb6 {[%emt 0:00:57]} 48. Bb2 {[%emt 0:00:23]} Qc8 {[%emt 0:00:23]} 49. Bc3 {[%emt 0:00:08]} Qa6 {[%emt 0:00:15]} 50. Bb2 {[%emt 0:00:27]} Qa4 {[%emt 0:00:56]} 51. Bc3 {[%emt 0:00:03]} Qxa3 {[%emt 0:00:46]} 52. Ra1 {[%emt 0:00:36]} Qd6 {[%emt 0:00:57]} 53. Bb1 {[%emt 0:01:09]} Qd7 {[%emt 0:00:14]} 54. Bc2 {[%emt 0:00:36]} Rd6 {[%emt 0:00:22]} 55. Rd1 {[%emt 0:00:52]} Bb7 {[%emt 0:00:24]} 56. Qd2 {[%emt 0:00:30]} Qc6 {[%emt 0:00:04]} 57. Qh2 {[%emt 0:00:02]} Rcd7 {[%emt 0:00:01]} 58. d5 {[%emt 0:00:02]} 0-1